[Event "*** Titled Tuesday Blitz"]
[Site "Chess.com"]
[Date "2020.11.03"]
[Round "11"]
[White "GoltsevDmitry2000"]
[Black "swimmerchess"]
[Result "0-1"]
[WhiteElo "2692"]
[BlackElo "2855"]
[TimeControl "180+1"]
[EndTime "12:09:46 PST"]
[Termination "swimmerchess won on time"]

1. e4 {[%clk 0:02:59.1]} 1... c5 {[%clk 0:03:00.1]} 2. Nf3 {[%clk 0:02:59]} 2...
Nc6 {[%clk 0:03:00.2]} 3. b3 {[%clk 0:02:57.6]} 3... g6 {[%clk 0:02:55.6]} 4.
Bb2 {[%clk 0:02:57.3]} 4... Nf6 {[%clk 0:02:55.9]} 5. e5 {[%clk 0:02:54.9]} 5...
Nd5 {[%clk 0:02:56]} 6. e6 {[%clk 0:02:51.7]} 6... f6 {[%clk 0:02:55.6]} 7.
exd7+ {[%clk 0:02:48.8]} 7... Qxd7 {[%clk 0:02:56.5]} 8. Be2 {[%clk 0:02:48.1]}
8... Bh6 {[%clk 0:02:54.3]} 9. O-O {[%clk 0:02:46.6]} 9... O-O {[%clk
0:02:54.1]} 10. Re1 {[%clk 0:02:45.9]} 10... e5 {[%clk 0:02:53.6]} 11. Nc3
{[%clk 0:02:45.5]} 11... Nf4 {[%clk 0:02:51.8]} 12. Bf1 {[%clk 0:02:45.8]} 12...
b6 {[%clk 0:02:48.5]} 13. Ne4 {[%clk 0:02:42.6]} 13... Bb7 {[%clk 0:02:47.5]}
14. g3 {[%clk 0:02:32]} 14... Nh3+ {[%clk 0:02:46.2]} 15. Bxh3 {[%clk
0:02:14.1]} 15... Qxh3 {[%clk 0:02:45.6]} 16. Nd6 {[%clk 0:02:11.4]} 16... Ba6
{[%clk 0:02:42.2]} 17. Kh1 {[%clk 0:01:04.6]} 17... Rad8 {[%clk 0:02:41.6]} 18.
Ne4 {[%clk 0:00:51]} 18... Bb7 {[%clk 0:02:41.7]} 19. d3 {[%clk 0:00:25.5]}
19... f5 {[%clk 0:02:24.2]} 20. Ned2 {[%clk 0:00:24.8]} 20... Nd4 {[%clk
0:02:07.3]} 21. Bxd4 {[%clk 0:00:20]} 21... Bxd2 {[%clk 0:02:07.7]} 22. Rxe5
{[%clk 0:00:05.6]} 22... cxd4 {[%clk 0:01:58.2]} 23. Kg1 {[%clk 0:00:05.7]}
23... Bc3 {[%clk 0:01:58.1]} 24. Rb1 {[%clk 0:00:05.7]} 24... Rde8 {[%clk
0:01:57.1]} 25. Qe2 {[%clk 0:00:03.6]} 25... Rxe5 {[%clk 0:01:56.2]} 26. Qxe5
{[%clk 0:00:04.5]} 26... Bxf3 {[%clk 0:01:56.3]} 27. Qe6+ {[%clk 0:00:04.6]}
27... Kg7 {[%clk 0:01:56.5]} 28. Qe7+ {[%clk 0:00:04.6]} 28... Rf7 {[%clk
0:01:55.8]} 29. Qe5+ {[%clk 0:00:05.1]} 29... Kh6 {[%clk 0:01:55.5]} 30. Qf4+
{[%clk 0:00:05.4]} 30... g5 {[%clk 0:01:52.1]} 31. Qxf3 {[%clk 0:00:05.9]} 31...
f4 {[%clk 0:01:49.4]} 32. Qc6+ {[%clk 0:00:05.5]} 32... Kg7 {[%clk 0:01:49.6]}
33. Qd5 {[%clk 0:00:05]} 33... Qf5 {[%clk 0:01:48.3]} 34. Qg2 {[%clk 0:00:03.1]}
34... f3 {[%clk 0:01:47]} 35. Qf1 {[%clk 0:00:03]} 35... Re7 {[%clk 0:01:47.3]}
36. a4 {[%clk 0:00:02]} 36... a5 {[%clk 0:01:46.8]} 37. Rc1 {[%clk 0:00:02.5]}
37... g4 {[%clk 0:01:46.7]} 38. h4 {[%clk 0:00:02.2]} 38... gxh3 {[%clk
0:01:46.7]} 39. Kh2 {[%clk 0:00:02.3]} 39... Re2 {[%clk 0:01:47.3]} 40. Kh1
{[%clk 0:00:01.6]} 40... h5 {[%clk 0:01:46.9]} 41. Qg1 {[%clk 0:00:01.9]} 41...
Qg5 {[%clk 0:01:46.5]} 42. Kh2 {[%clk 0:00:02.3]} 42... Bd2 {[%clk 0:01:45.2]}
43. Rd1 {[%clk 0:00:02]} 43... Be3 {[%clk 0:01:45.3]} 44. Rf1 {[%clk 0:00:02.6]}
44... Rxc2 {[%clk 0:01:45.5]} 45. Kxh3 {[%clk 0:00:03]} 45... Qg4+ {[%clk
0:01:45.3]} 46. Kh2 {[%clk 0:00:03.7]} 46... Re2 {[%clk 0:01:43]} 47. b4 {[%clk
0:00:02.4]} 47... axb4 {[%clk 0:01:43.2]} 48. Qh1 {[%clk 0:00:01.5]} 48... Bxf2
{[%clk 0:01:42.5]} 0-1

[Event "*** Titled Tuesday Blitz"]
[Site "Chess.com"]
[Date "2020.11.03"]
[Round "11"]
[White "Gloomy_Wanderer"]
[Black "TregubovP"]
[Result "0-1"]
[WhiteElo "2679"]
[BlackElo "2552"]
[TimeControl "180+1"]
[EndTime "12:09:46 PST"]
[Termination "TregubovP won by resignation"]

1. d4 {[%clk 0:03:00.9]} 1... Nf6 {[%clk 0:02:59.3]} 2. c4 {[%clk 0:02:59.4]}
2... e6 {[%clk 0:02:59.5]} 3. Nf3 {[%clk 0:02:59.4]} 3... Bb4+ {[%clk
0:02:59.2]} 4. Bd2 {[%clk 0:02:59.3]} 4... Qe7 {[%clk 0:02:58.5]} 5. g3 {[%clk
0:02:59.8]} 5... Bxd2+ {[%clk 0:02:58]} 6. Qxd2 {[%clk 0:02:59.9]} 6... Nc6
{[%clk 0:02:58.4]} 7. Nc3 {[%clk 0:03:00]} 7... d5 {[%clk 0:02:57.2]} 8. b3
{[%clk 0:02:56.3]} 8... O-O {[%clk 0:02:56.7]} 9. Bg2 {[%clk 0:02:55.7]} 9...
dxc4 {[%clk 0:02:56.3]} 10. bxc4 {[%clk 0:02:55.7]} 10... Rd8 {[%clk 0:02:56.7]}
11. O-O {[%clk 0:02:54.6]} 11... Nxd4 {[%clk 0:02:55.8]} 12. Nxd4 {[%clk
0:02:54.6]} 12... e5 {[%clk 0:02:54.8]} 13. Nd5 {[%clk 0:02:43.1]} 13... Nxd5
{[%clk 0:02:54.8]} 14. cxd5 {[%clk 0:02:43.3]} 14... exd4 {[%clk 0:02:54.8]} 15.
Rfe1 {[%clk 0:02:40.4]} 15... c5 {[%clk 0:02:51.8]} 16. dxc6 {[%clk 0:02:37.9]}
16... bxc6 {[%clk 0:02:50.3]} 17. Bxc6 {[%clk 0:02:38.8]} 17... Rb8 {[%clk
0:02:50.4]} 18. Bf3 {[%clk 0:02:25.5]} 18... Bf5 {[%clk 0:02:43.8]} 19. Qf4
{[%clk 0:02:24]} 19... g6 {[%clk 0:02:41.5]} 20. Rad1 {[%clk 0:02:23.5]} 20...
Rb4 {[%clk 0:02:38.7]} 21. e3 {[%clk 0:02:16.8]} 21... d3 {[%clk 0:02:34.2]} 22.
e4 {[%clk 0:02:10.5]} 22... Be6 {[%clk 0:02:33.3]} 23. Rd2 {[%clk 0:02:00]}
23... Ra4 {[%clk 0:02:27.3]} 24. Red1 {[%clk 0:01:56.3]} 24... Ra3 {[%clk
0:02:19.9]} 25. Qe3 {[%clk 0:01:45.4]} 25... Bc4 {[%clk 0:02:17.1]} 26. e5
{[%clk 0:01:40.1]} 26... Ra5 {[%clk 0:02:09.2]} 27. Qf4 {[%clk 0:01:35.8]} 27...
Ba6 {[%clk 0:01:48.4]} 28. e6 {[%clk 0:01:21.5]} 28... Qxe6 {[%clk 0:01:37.6]}
29. Qc7 {[%clk 0:01:21.3]} 29... Qb6 {[%clk 0:01:37.4]} 30. Qxb6 {[%clk
0:01:16.3]} 30... axb6 {[%clk 0:01:35.2]} 31. Be4 {[%clk 0:01:14.5]} 31... f5
{[%clk 0:01:23.3]} 32. Bf3 {[%clk 0:01:08.7]} 32... Bc4 {[%clk 0:01:22.5]} 33.
Be2 {[%clk 0:01:03.2]} 33... Kg7 {[%clk 0:01:18.2]} 34. Bf1 {[%clk 0:00:59.6]}
34... Ra3 {[%clk 0:01:15.8]} 35. Rb2 {[%clk 0:00:56.4]} 35... b5 {[%clk
0:01:15.8]} 36. Rdd2 {[%clk 0:00:57]} 36... Kf6 {[%clk 0:01:15.4]} 37. f4 {[%clk
0:00:57.4]} 37... Ke6 {[%clk 0:01:15.2]} 38. Kf2 {[%clk 0:00:57.5]} 38... Kd5
{[%clk 0:01:14.9]} 39. Bg2+ {[%clk 0:00:47]} 39... Kd4 {[%clk 0:01:14.4]} 40.
Bc6 {[%clk 0:00:47.9]} 40... Rb8 {[%clk 0:01:10.3]} 41. Ke1 {[%clk 0:00:44.2]}
41... Rb6 {[%clk 0:01:09.1]} 42. Bf3 {[%clk 0:00:43.6]} 42... Rba6 {[%clk
0:01:07.2]} 43. Bb7 {[%clk 0:00:40.7]} 43... Ra7 {[%clk 0:01:02.3]} 44. Bc6
{[%clk 0:00:40.5]} 44... Rxa2 {[%clk 0:00:55.2]} 45. Rxa2 {[%clk 0:00:33.5]}
45... Rxa2 {[%clk 0:00:55.1]} 0-1

[Event "*** Titled Tuesday Blitz"]
[Site "Chess.com"]
[Date "2020.11.03"]
[Round "11"]
[White "LiemLe"]
[Black "GigaQuparadze"]
[Result "1/2-1/2"]
[WhiteElo "2999"]
[BlackElo "2874"]
[TimeControl "180+1"]
[EndTime "12:09:52 PST"]
[Termination "Game drawn by repetition"]

1. e4 {[%clk 0:03:00.9]} 1... c5 {[%clk 0:02:59.8]} 2. Nf3 {[%clk 0:03:01.4]}
2... e6 {[%clk 0:03:00.1]} 3. d4 {[%clk 0:03:01.1]} 3... cxd4 {[%clk 0:03:01]}
4. Nxd4 {[%clk 0:03:01.8]} 4... a6 {[%clk 0:03:01.4]} 5. c4 {[%clk 0:03:01]}
5... Nf6 {[%clk 0:03:01]} 6. Nc3 {[%clk 0:03:01.3]} 6... Bb4 {[%clk 0:03:01.6]}
7. Qd3 {[%clk 0:03:00.3]} 7... O-O {[%clk 0:03:01.7]} 8. Be2 {[%clk 0:02:58.3]}
8... d6 {[%clk 0:03:01.3]} 9. O-O {[%clk 0:02:51.4]} 9... Nbd7 {[%clk
0:03:01.3]} 10. Rd1 {[%clk 0:02:47.8]} 10... Nc5 {[%clk 0:03:00.1]} 11. Qc2
{[%clk 0:02:40.1]} 11... Bxc3 {[%clk 0:02:59.6]} 12. Qxc3 {[%clk 0:02:41]} 12...
Ncxe4 {[%clk 0:02:58]} 13. Qa3 {[%clk 0:02:36.8]} 13... e5 {[%clk 0:02:53.7]}
14. Nb3 {[%clk 0:02:36.6]} 14... Qc7 {[%clk 0:02:47.4]} 15. Be3 {[%clk
0:02:35.7]} 15... b6 {[%clk 0:02:45.3]} 16. f3 {[%clk 0:02:06]} 16... Nc5 {[%clk
0:02:44.6]} 17. Rd2 {[%clk 0:02:03.6]} 17... Be6 {[%clk 0:02:42.7]} 18. Rad1
{[%clk 0:02:02.6]} 18... Rfd8 {[%clk 0:02:41.9]} 19. Nxc5 {[%clk 0:01:50.1]}
19... bxc5 {[%clk 0:02:38.8]} 20. b3 {[%clk 0:01:38.7]} 20... a5 {[%clk
0:02:38.1]} 21. f4 {[%clk 0:01:39]} 21... Ne4 {[%clk 0:02:34.1]} 22. Rd3 {[%clk
0:01:39.1]} 22... exf4 {[%clk 0:02:06.8]} 23. Bxf4 {[%clk 0:01:40]} 23... Bf5
{[%clk 0:02:05]} 24. Bf3 {[%clk 0:01:38]} 24... Ra6 {[%clk 0:02:03.4]} 25. Rd5
{[%clk 0:01:26.5]} 25... Bg6 {[%clk 0:02:01.9]} 26. Bxe4 {[%clk 0:01:25.5]}
26... Bxe4 {[%clk 0:02:00.5]} 27. Qxc5 {[%clk 0:01:16.5]} 27... Rc6 {[%clk
0:01:53.5]} 28. Rxd6 {[%clk 0:01:08.3]} 28... Rdxd6 {[%clk 0:01:36.9]} 29. Bxd6
{[%clk 0:01:08]} 29... Qd7 {[%clk 0:01:21.9]} 30. Qe5 {[%clk 0:01:06.5]} 30...
f5 {[%clk 0:01:12.4]} 31. Rd4 {[%clk 0:01:03.7]} 31... Qf7 {[%clk 0:01:09.4]}
32. Ba3 {[%clk 0:00:54.7]} 32... h6 {[%clk 0:01:04]} 33. Rd8+ {[%clk 0:00:51.3]}
33... Kh7 {[%clk 0:01:03.9]} 34. Qe8 {[%clk 0:00:51.7]} 34... Qf6 {[%clk
0:00:57.4]} 35. Qg8+ {[%clk 0:00:26.1]} 35... Kg6 {[%clk 0:00:57.5]} 36. Qe8+
{[%clk 0:00:27]} 36... Kh7 {[%clk 0:00:57.5]} 37. Qg8+ {[%clk 0:00:15.5]} 37...
Kg6 {[%clk 0:00:57.5]} 38. Qe8+ {[%clk 0:00:16.4]} 38... Kh7 {[%clk 0:00:40]}
1/2-1/2

[Event "*** Titled Tuesday Blitz"]
[Site "Chess.com"]
[Date "2020.11.03"]
[Round "11"]
[White "MokshanovAlexey"]
[Black "MPGM"]
[Result "1-0"]
[WhiteElo "2607"]
[BlackElo "2462"]
[TimeControl "180+1"]
[EndTime "12:09:54 PST"]
[Termination "MokshanovAlexey won by resignation"]

1. e4 {[%clk 0:03:00.9]} 1... c6 {[%clk 0:02:59.7]} 2. d4 {[%clk 0:03:00.6]}
2... d5 {[%clk 0:03:00.6]} 3. e5 {[%clk 0:03:01.1]} 3... c5 {[%clk 0:03:00.7]}
4. dxc5 {[%clk 0:03:00.9]} 4... e6 {[%clk 0:03:01.3]} 5. Nf3 {[%clk 0:03:00.4]}
5... Bxc5 {[%clk 0:03:01.6]} 6. a3 {[%clk 0:03:01]} 6... a6 {[%clk 0:03:00.1]}
7. b4 {[%clk 0:03:00.3]} 7... Ba7 {[%clk 0:02:57.8]} 8. c4 {[%clk 0:02:56.7]}
8... Ne7 {[%clk 0:02:55.5]} 9. Nc3 {[%clk 0:02:56.7]} 9... dxc4 {[%clk
0:02:50.4]} 10. Qxd8+ {[%clk 0:02:56.2]} 10... Kxd8 {[%clk 0:02:51.3]} 11. Bxc4
{[%clk 0:02:55.8]} 11... b5 {[%clk 0:02:51.2]} 12. Bd3 {[%clk 0:02:53.1]} 12...
Bb7 {[%clk 0:02:51.7]} 13. Be4 {[%clk 0:02:53.3]} 13... Bxe4 {[%clk 0:02:47]}
14. Nxe4 {[%clk 0:02:54.2]} 14... Nd5 {[%clk 0:02:32.2]} 15. Bg5+ {[%clk
0:02:46.1]} 15... Kd7 {[%clk 0:02:29.8]} 16. O-O {[%clk 0:02:39.7]} 16... h6
{[%clk 0:02:28.8]} 17. Be3 {[%clk 0:02:07.3]} 17... Nxe3 {[%clk 0:02:23.8]} 18.
fxe3 {[%clk 0:02:08.2]} 18... Bxe3+ {[%clk 0:02:23.7]} 19. Kh1 {[%clk
0:02:08.5]} 19... Nc6 {[%clk 0:02:12.5]} 20. Rfe1 {[%clk 0:01:51.5]} 20... Ba7
{[%clk 0:01:58]} 21. Rac1 {[%clk 0:01:50]} 21... Ne7 {[%clk 0:01:35.2]} 22.
Red1+ {[%clk 0:01:45.7]} 22... Nd5 {[%clk 0:01:35.6]} 23. Nc3 {[%clk 0:01:46]}
23... Rac8 {[%clk 0:01:33.5]} 24. Nxd5 {[%clk 0:01:45.9]} 24... Rxc1 {[%clk
0:01:33.3]} 25. Nf6+ {[%clk 0:01:46.2]} 25... Ke7 {[%clk 0:01:17.9]} 26. Rxc1
{[%clk 0:01:46.3]} 26... Bb6 {[%clk 0:01:07.6]} 27. Rc6 {[%clk 0:01:36.5]} 27...
gxf6 {[%clk 0:01:04.7]} 28. Rxb6 {[%clk 0:01:31.2]} 28... Rc8 {[%clk 0:01:04.3]}
29. exf6+ {[%clk 0:01:28.1]} 29... Kxf6 {[%clk 0:01:04]} 30. h3 {[%clk
0:01:27.7]} 30... Kf5 {[%clk 0:01:01.9]} 31. Rxa6 {[%clk 0:01:26.9]} 31... h5
{[%clk 0:01:00.1]} 32. Rb6 {[%clk 0:01:26.5]} 32... Kf4 {[%clk 0:00:57.8]} 33.
Rxb5 {[%clk 0:01:25.9]} 33... f6 {[%clk 0:00:52.6]} 34. Kh2 {[%clk 0:01:10.3]}
34... e5 {[%clk 0:00:52.2]} 35. Rc5 {[%clk 0:01:06.3]} 35... Ra8 {[%clk
0:00:44.5]} 36. b5 {[%clk 0:00:59.4]} 36... Rxa3 {[%clk 0:00:43]} 37. Rc4+
{[%clk 0:00:59.4]} 37... e4 {[%clk 0:00:42.1]} 38. Rb4 {[%clk 0:00:59.6]} 38...
Ra7 {[%clk 0:00:32.8]} 39. b6 {[%clk 0:00:59.4]} 39... Rb7 {[%clk 0:00:33.4]}
40. Nd2 {[%clk 0:00:58.4]} 40... f5 {[%clk 0:00:33.2]} 41. Nb3 {[%clk
0:00:57.5]} 41... Ke3 {[%clk 0:00:26.7]} 42. Na5 {[%clk 0:00:54.7]} 42... Rb8
{[%clk 0:00:26.4]} 43. b7 {[%clk 0:00:54.9]} 43... f4 {[%clk 0:00:22.2]} 44. Nc6
{[%clk 0:00:54.3]} 44... Rxb7 {[%clk 0:00:21.9]} 45. Rxb7 {[%clk 0:00:55.2]}
45... f3 {[%clk 0:00:21.7]} 46. gxf3 {[%clk 0:00:55.3]} 46... exf3 {[%clk
0:00:22.6]} 1-0

[Event "*** Titled Tuesday Blitz"]
[Site "Chess.com"]
[Date "2020.11.03"]
[Round "11"]
[White "MattyDPerrine"]
[Black "shnitez"]
[Result "0-1"]
[WhiteElo "2405"]
[BlackElo "2531"]
[TimeControl "180+1"]
[EndTime "12:09:58 PST"]
[Termination "shnitez won on time"]

1. e4 {[%clk 0:03:00.9]} 1... c5 {[%clk 0:02:58.2]} 2. Nf3 {[%clk 0:02:58.6]}
2... e6 {[%clk 0:02:57.9]} 3. d4 {[%clk 0:02:58.7]} 3... cxd4 {[%clk 0:02:57.9]}
4. Nxd4 {[%clk 0:02:59.6]} 4... a6 {[%clk 0:02:56.8]} 5. g3 {[%clk 0:02:59.5]}
5... b5 {[%clk 0:02:32]} 6. Bg2 {[%clk 0:02:59.4]} 6... Bb7 {[%clk 0:02:32.2]}
7. O-O {[%clk 0:02:59.8]} 7... Nc6 {[%clk 0:02:04.8]} 8. Re1 {[%clk 0:02:45.5]}
8... Nxd4 {[%clk 0:01:50.5]} 9. Qxd4 {[%clk 0:02:46.4]} 9... Ne7 {[%clk
0:01:48.4]} 10. Bf4 {[%clk 0:02:22.2]} 10... Nc6 {[%clk 0:01:42.7]} 11. Qd2
{[%clk 0:02:16]} 11... d6 {[%clk 0:01:40.9]} 12. Nc3 {[%clk 0:02:10.9]} 12...
Be7 {[%clk 0:01:35.8]} 13. Rad1 {[%clk 0:02:10.3]} 13... Ne5 {[%clk 0:01:34.5]}
14. Qe2 {[%clk 0:01:48.4]} 14... Qc7 {[%clk 0:01:31.5]} 15. Bc1 {[%clk
0:01:38.7]} 15... O-O {[%clk 0:01:12.8]} 16. f4 {[%clk 0:01:36.1]} 16... Nc4
{[%clk 0:01:12.4]} 17. b3 {[%clk 0:01:03.5]} 17... Nb6 {[%clk 0:01:10.7]} 18.
Rd3 {[%clk 0:00:36.5]} 18... Rac8 {[%clk 0:01:09]} 19. Be3 {[%clk 0:00:30.8]}
19... Nd7 {[%clk 0:00:41.1]} 20. b4 {[%clk 0:00:18]} 20... Nb6 {[%clk
0:00:34.8]} 21. Bf2 {[%clk 0:00:13]} 21... Rfd8 {[%clk 0:00:24.8]} 22. g4 {[%clk
0:00:12.7]} 22... Bf6 {[%clk 0:00:19.6]} 23. e5 {[%clk 0:00:08.9]} 23... dxe5
{[%clk 0:00:19.4]} 24. fxe5 {[%clk 0:00:05.8]} 24... Rxd3 {[%clk 0:00:17.2]} 25.
cxd3 {[%clk 0:00:01.8]} 25... Bxg2 {[%clk 0:00:13.2]} 0-1

[Event "*** Titled Tuesday Blitz"]
[Site "Chess.com"]
[Date "2020.11.03"]
[Round "11"]
[White "mr_gustavo"]
[Black "AniJak"]
[Result "1/2-1/2"]
[WhiteElo "2396"]
[BlackElo "2313"]
[TimeControl "180+1"]
[EndTime "12:10:07 PST"]
[Termination "Game drawn by repetition"]

1. e4 {[%clk 0:03:00.9]} 1... c6 {[%clk 0:02:59.6]} 2. d4 {[%clk 0:02:59.6]}
2... d5 {[%clk 0:02:59.5]} 3. e5 {[%clk 0:03:00.1]} 3... Bf5 {[%clk 0:02:59]} 4.
Bd3 {[%clk 0:02:59.2]} 4... Bxd3 {[%clk 0:02:57.5]} 5. Qxd3 {[%clk 0:03:00.1]}
5... e6 {[%clk 0:02:57.8]} 6. f4 {[%clk 0:02:59.8]} 6... c5 {[%clk 0:02:57.3]}
7. Nf3 {[%clk 0:02:56.4]} 7... Nc6 {[%clk 0:02:57]} 8. Be3 {[%clk 0:02:55.6]}
8... cxd4 {[%clk 0:02:44.6]} 9. Nxd4 {[%clk 0:02:54.7]} 9... Nh6 {[%clk
0:02:41.2]} 10. Nd2 {[%clk 0:02:43.1]} 10... Nxd4 {[%clk 0:02:39.9]} 11. Bxd4
{[%clk 0:02:42.3]} 11... Nf5 {[%clk 0:02:38.1]} 12. Bf2 {[%clk 0:02:41.4]} 12...
h5 {[%clk 0:02:31.5]} 13. O-O {[%clk 0:02:40.9]} 13... Be7 {[%clk 0:02:25.9]}
14. Rad1 {[%clk 0:02:39.7]} 14... O-O {[%clk 0:02:25]} 15. Nb3 {[%clk
0:02:37.7]} 15... Rc8 {[%clk 0:02:23.3]} 16. c3 {[%clk 0:02:36.6]} 16... g6
{[%clk 0:02:08.8]} 17. Nd4 {[%clk 0:02:25.5]} 17... Nxd4 {[%clk 0:02:07.9]} 18.
Bxd4 {[%clk 0:02:25.5]} 18... Bc5 {[%clk 0:02:03.9]} 19. Bxc5 {[%clk 0:02:25.1]}
19... Rxc5 {[%clk 0:02:04.1]} 20. Qd4 {[%clk 0:02:25.7]} 20... Qb6 {[%clk
0:01:58.2]} 21. Rd3 {[%clk 0:02:25.3]} 21... Rb5 {[%clk 0:01:54.2]} 22. Qxb6
{[%clk 0:02:24.3]} 22... Rxb6 {[%clk 0:01:55.1]} 23. b3 {[%clk 0:02:23.5]} 23...
Rc8 {[%clk 0:01:55]} 24. Rc1 {[%clk 0:02:22.5]} 24... Rbc6 {[%clk 0:01:54.8]}
25. Kf2 {[%clk 0:02:21.2]} 25... Kf8 {[%clk 0:01:54.1]} 26. Ke3 {[%clk
0:02:21.1]} 26... Ke7 {[%clk 0:01:53.3]} 27. Kd4 {[%clk 0:02:21.4]} 27... b5
{[%clk 0:01:47.9]} 28. Ra1 {[%clk 0:02:16]} 28... b4 {[%clk 0:01:40.4]} 29. cxb4
{[%clk 0:02:15.2]} 29... Rc2 {[%clk 0:01:40.5]} 30. g3 {[%clk 0:02:04.7]} 30...
Re2 {[%clk 0:01:40.3]} 31. Re3 {[%clk 0:02:02.1]} 31... Rd2+ {[%clk 0:01:40.4]}
32. Rd3 {[%clk 0:02:02.3]} 32... Rxh2 {[%clk 0:01:39.9]} 33. a4 {[%clk
0:01:56.9]} 33... Re2 {[%clk 0:01:38.4]} 34. Re3 {[%clk 0:01:39.5]} 34... Rd2+
{[%clk 0:01:38.4]} 35. Rd3 {[%clk 0:01:39.6]} 35... Re2 {[%clk 0:01:26.3]} 36.
Rc3 {[%clk 0:01:27.7]} 36... Re4+ {[%clk 0:01:11.9]} 37. Kd3 {[%clk 0:01:26.6]}
37... Rxc3+ {[%clk 0:01:12.8]} 38. Kxc3 {[%clk 0:01:26.9]} 38... Re3+ {[%clk
0:01:13.7]} 39. Kd4 {[%clk 0:01:27.1]} 39... Rxg3 {[%clk 0:01:14.1]} 40. Kc5
{[%clk 0:01:21.8]} 40... Rxb3 {[%clk 0:01:12.3]} 41. b5 {[%clk 0:01:18.8]} 41...
h4 {[%clk 0:01:10.9]} 42. a5 {[%clk 0:01:17.9]} 42... h3 {[%clk 0:01:10.7]} 43.
b6 {[%clk 0:01:17.9]} 43... axb6+ {[%clk 0:01:10.8]} 44. axb6 {[%clk 0:01:18.8]}
44... d4 {[%clk 0:01:03.4]} 45. Kc6 {[%clk 0:01:10.7]} 45... Rc3+ {[%clk
0:00:45.8]} 46. Kb5 {[%clk 0:01:04.6]} 46... h2 {[%clk 0:00:44.6]} 47. Rh1
{[%clk 0:00:58.8]} 47... Rc2 {[%clk 0:00:40.8]} 48. b7 {[%clk 0:00:57.8]} 48...
Kd7 {[%clk 0:00:39]} 49. Kb6 {[%clk 0:00:51.2]} 49... Rb2+ {[%clk 0:00:32.9]}
50. Ka7 {[%clk 0:00:51]} 50... Ra2+ {[%clk 0:00:33]} 51. Kb6 {[%clk 0:00:51]}
51... Rb2+ {[%clk 0:00:33.2]} 52. Ka7 {[%clk 0:00:51.4]} 52... Ra2+ {[%clk
0:00:33.1]} 53. Kb6 {[%clk 0:00:51.6]} 53... Rb2+ {[%clk 0:00:27.3]} 1/2-1/2

[Event "*** Titled Tuesday Blitz"]
[Site "Chess.com"]
[Date "2020.11.03"]
[Round "11"]
[White "profofchess"]
[Black "Alomaterapia"]
[Result "1/2-1/2"]
[WhiteElo "2391"]
[BlackElo "2501"]
[TimeControl "180+1"]
[EndTime "12:10:12 PST"]
[Termination "Game drawn by repetition"]

1. e4 {[%clk 0:03:00.8]} 1... e5 {[%clk 0:02:59.3]} 2. Nf3 {[%clk 0:03:00.3]}
2... Nc6 {[%clk 0:02:58.3]} 3. Nc3 {[%clk 0:03:00.8]} 3... Nf6 {[%clk 0:02:55]}
4. Bb5 {[%clk 0:03:01.3]} 4... Nd4 {[%clk 0:02:41.2]} 5. Nxd4 {[%clk 0:03:00.4]}
5... exd4 {[%clk 0:02:41]} 6. Nd5 {[%clk 0:03:01.3]} 6... Nxd5 {[%clk
0:02:23.5]} 7. exd5 {[%clk 0:03:01.4]} 7... Be7 {[%clk 0:01:47.5]} 8. O-O {[%clk
0:02:57.7]} 8... O-O {[%clk 0:01:47.6]} 9. Bd3 {[%clk 0:02:35.4]} 9... d6 {[%clk
0:01:39.4]} 10. b3 {[%clk 0:02:25.3]} 10... Bf6 {[%clk 0:01:38]} 11. Bb2 {[%clk
0:02:24.7]} 11... g6 {[%clk 0:01:35.4]} 12. Qf3 {[%clk 0:02:20.7]} 12... Bg7
{[%clk 0:01:33.3]} 13. Rfe1 {[%clk 0:02:16]} 13... h5 {[%clk 0:01:22.5]} 14. h3
{[%clk 0:01:54.7]} 14... Qf6 {[%clk 0:01:21.9]} 15. Qe4 {[%clk 0:01:25.2]} 15...
Bf5 {[%clk 0:01:17.4]} 16. Qe7 {[%clk 0:01:25.2]} 16... Bxd3 {[%clk 0:01:09.8]}
17. cxd3 {[%clk 0:01:26.1]} 17... Qf5 {[%clk 0:00:55.2]} 18. Qe4 {[%clk
0:01:14.2]} 18... Qg5 {[%clk 0:00:40.4]} 19. Bxd4 {[%clk 0:00:52.1]} 19... Qxd2
{[%clk 0:00:34.6]} 20. Bxg7 {[%clk 0:00:51.6]} 20... Kxg7 {[%clk 0:00:34.5]} 21.
Qd4+ {[%clk 0:00:50.9]} 21... Kg8 {[%clk 0:00:34.1]} 22. Re7 {[%clk 0:00:48.9]}
22... Qc2 {[%clk 0:00:25.3]} 23. Rae1 {[%clk 0:00:40.7]} 23... a5 {[%clk
0:00:20.2]} 24. a4 {[%clk 0:00:37.3]} 24... b6 {[%clk 0:00:18.2]} 25. Rd7 {[%clk
0:00:34.4]} 25... Rae8 {[%clk 0:00:17.9]} 26. Ree7 {[%clk 0:00:33.4]} 26... Rxe7
{[%clk 0:00:17.8]} 27. Rxe7 {[%clk 0:00:34.3]} 27... Qxb3 {[%clk 0:00:17.6]} 28.
Rxc7 {[%clk 0:00:34.1]} 28... Qb4 {[%clk 0:00:15.6]} 29. Qxb4 {[%clk 0:00:32]}
29... axb4 {[%clk 0:00:15.8]} 30. Rb7 {[%clk 0:00:32.4]} 30... Ra8 {[%clk
0:00:14.9]} 31. Rxb6 {[%clk 0:00:32.6]} 31... Rxa4 {[%clk 0:00:14.8]} 32. Rxd6
{[%clk 0:00:32.7]} 32... Ra1+ {[%clk 0:00:12.3]} 33. Kh2 {[%clk 0:00:32]} 33...
Rd1 {[%clk 0:00:11.9]} 34. Rb6 {[%clk 0:00:25.2]} 34... Rxd3 {[%clk 0:00:12.4]}
35. Rxb4 {[%clk 0:00:25.3]} 35... Rxd5 {[%clk 0:00:12.9]} 36. h4 {[%clk
0:00:25.2]} 36... Rf5 {[%clk 0:00:13.4]} 37. Kg1 {[%clk 0:00:24.7]} 37... Kg7
{[%clk 0:00:14]} 38. g3 {[%clk 0:00:24.7]} 38... Rf6 {[%clk 0:00:14.5]} 39. Kg2
{[%clk 0:00:24.8]} 39... Rf5 {[%clk 0:00:14.9]} 40. Ra4 {[%clk 0:00:25.2]} 40...
Rf6 {[%clk 0:00:15.4]} 41. Rb4 {[%clk 0:00:25.6]} 41... Rf5 {[%clk 0:00:16.1]}
42. Ra4 {[%clk 0:00:26.1]} 42... Rf6 {[%clk 0:00:16.7]} 43. Rb4 {[%clk
0:00:26.5]} 1/2-1/2